fUSD/lending_fUSD_20250811
["ID","MTS","AMOUNT","RATE_DAILY","PERIOD"]
[378666666,1754951439006,-400.0,0.00016438,2]
[378666667,1754951439015,-819.26,0.00016438,2]
[378666668,1754951439026,-400.0,0.00016438,2]
[378666669,1754951439035,-400.0,0.00016438,2]
[378666670,1754951439043,-324.18279881,0.00016438,2]
[378666671,1754951439052,-400.0,0.00016438,2]
[378666672,1754951439061,-705.7,0.00016438,2]
[378666673,1754951439070,-1103.74,0.00016438,2]
[378666674,1754951439079,-400.0,0.00016438,2]
[378666675,1754951439088,-400.0,0.00016438,2]
[378666676,1754951439097,-400.0,0.00016438,2]
[378666677,1754951439105,-400.0,0.00016438,2]
[378666678,1754951439114,-7224.57,0.00016438,2]
[378666679,1754951439123,-659.33,0.00016438,2]
[378666680,1754951439132,-870.25,0.00016438,2]
[378666681,1754951439141,-1783.49,0.00016438,2]
[378666682,1754951439150,-400.0,0.00016438,2]
[378666683,1754951439160,-400.0,0.00016438,2]
[378666684,1754951439168,-400.0,0.00016438,2]
[378666685,1754951439177,-400.0,0.00016438,2]
[378666686,1754951439186,-400.0,0.00016438,2]
[378666687,1754951439195,-400.0,0.00016438,2]
[378666688,1754951439204,-400.0,0.00016438,2]
[378666689,1754951439213,-400.0,0.00016438,2]
[378666690,1754951439222,-400.0,0.00016438,2]
[378666691,1754951439232,-907.06,0.00016438,2]
[378666692,1754951439241,-400.0,0.00016438,2]
[378666693,1754951439250,-400.0,0.00016438,2]
[378666694,1754951439259,-400.0,0.00016438,2]
[378666695,1754951439268,-400.0,0.00016438,2]
[378666696,1754951439277,-485.15,0.00016438,2]
[378666697,1754951439286,-400.0,0.00016438,2]
[378666698,1754951439295,-400.0,0.00016438,2]
[378666699,1754951439304,-400.0,0.00016438,2]
[378666700,1754951439313,-400.0,0.00016438,2]
[378666701,1754951439322,-792.97,0.00016438,2]
[378666702,1754951439331,-400.0,0.00016438,2]
[378666703,1754951439339,-400.0,0.00016438,2]
[378666704,1754951439348,-400.0,0.00016438,2]
[378666705,1754951439357,-400.0,0.00016438,2]
[378666706,1754951439366,-400.0,0.00016438,2]
[378666707,1754951439376,-294.22130837,0.00016438,2]
[378666708,1754951439385,-400.0,0.00016438,2]
[378666709,1754951439395,-400.0,0.00016438,2]
[378666710,1754951439404,-400.0,0.00016438,2]
[378666711,1754951439413,-400.0,0.00016438,2]
[378666712,1754951439423,-400.0,0.00016438,2]
[378666713,1754951439432,-400.0,0.00016438,2]
[378666714,1754951439441,-400.0,0.00016438,2]
[378666715,1754951439450,-417.76,0.00016438,2]
[378666716,1754951439459,-400.0,0.00016438,2]
[378666717,1754951439468,-400.0,0.00016438,2]
[378666718,1754951439477,-400.0,0.00016438,2]
[378666719,1754951439486,-400.0,0.00016438,2]
[378666720,1754951439495,-400.0,0.00016438,2]
[378666721,1754951439504,-421.94,0.00016438,2]
[378666722,1754951439513,-400.0,0.00016438,2]
[378666723,1754951439522,-400.0,0.00016438,2]
[378666724,1754951439532,-587.84,0.00016438,2]
[378666725,1754951439541,-400.0,0.00016438,2]
[378666726,1754951439550,-400.0,0.00016438,2]
[378666727,1754951439559,-400.0,0.00016438,2]
[378666728,1754951439568,-540.83,0.00016438,2]
[378666729,1754951439577,-68.19317284,0.00016438,2]
[378666730,1754951439591,-331.80682716,0.00016438,2]
[378666731,1754951439599,-400.0,0.00016438,2]
[378666732,1754951439608,-400.0,0.00016438,2]
[378666733,1754951439617,-400.0,0.00016438,2]
[378666734,1754951439627,-400.0,0.00016438,2]
[378666735,1754951439635,-400.0,0.00016438,2]
[378666736,1754951439647,-354.85044048,0.00016438,2]
[378666737,1754951439658,-1104.64955952,0.00016438,2]
[378666738,1754951439668,-400.0,0.00016438,2]
[378666739,1754951439677,-400.0,0.00016438,2]
[378666740,1754951439685,-400.0,0.00016438,2]
[378666741,1754951439695,-491.56,0.00016438,2]
[378666742,1754951439704,-400.0,0.00016438,2]
[378666743,1754951439713,-584.24,0.00016438,2]
[378666744,1754951439723,-404.5656335,0.00016438,2]
[378666745,1754951439732,-400.0,0.00016438,2]
[378666746,1754951439741,-475.39,0.00016438,2]
[378666747,1754951439750,-400.0,0.00016438,2]
[378666748,1754951439759,-203.59480698,0.00016438,2]
[378666770,1754951440957,-196.40519302,0.00016438,2]
[378666772,1754951440966,-982.43,0.00016438,2]
[378666774,1754951440976,-420.48,0.00016438,2]
[378666776,1754951440987,-400.0,0.00016438,2]
[378666778,1754951440996,-400.0,0.00016438,2]
[378666780,1754951441005,-553.33,0.00016438,2]
[378666781,1754951441015,-217.24201414,0.00016438,2]
[378666782,1754951441026,-182.75798586,0.00016438,2]
[378666783,1754951441036,-405.34,0.00016438,2]
[378666784,1754951441045,-412.67,0.00016438,2]
[378666785,1754951441054,-531.31,0.00016438,2]
[378666786,1754951441063,-400.0,0.00016438,2]
[378666787,1754951441072,-400.0,0.00016438,2]
[378666788,1754951441081,-400.0,0.00016438,2]
[378666789,1754951441090,-617.08,0.00016438,2]
[378666790,1754951441100,-400.0,0.00016438,2]
[378666791,1754951441109,-1253.71,0.00016438,2]
[378666792,1754951441118,-400.0,0.00016438,2]
[378666793,1754951441127,-400.0,0.00016438,2]
[378666794,1754951441137,-400.0,0.00016438,2]
[378666795,1754951441146,-690.49,0.00016438,2]
[378666796,1754951441155,-400.0,0.00016438,2]
[378666797,1754951441164,-400.0,0.00016438,2]
[378666798,1754951441173,-613.62,0.00016438,2]
[378666799,1754951441183,-400.0,0.00016438,2]
[378666800,1754951441192,-476.32,0.00016438,2]
[378666801,1754951441201,-412.4,0.00016438,2]
[378666802,1754951441210,-400.0,0.00016438,2]
[378666803,1754951441219,-400.0,0.00016438,2]
[378666804,1754951441228,-510.58,0.00016438,2]
[378666805,1754951441238,-547.87,0.00016438,2]
[378666806,1754951441247,-400.0,0.00016438,2]
[378666807,1754951441256,-400.0,0.00016438,2]
[378666808,1754951441265,-400.0,0.00016438,2]
[378666809,1754951441274,-487.92,0.00016438,2]
[378666810,1754951441283,-400.0,0.00016438,2]
[378666811,1754951441292,-400.0,0.00016438,2]
[378666812,1754951441301,-400.0,0.00016438,2]
[378666813,1754951441310,-400.0,0.00016438,2]
[378666814,1754951441319,-400.0,0.00016438,2]
[378666815,1754951441328,-418.75,0.00016438,2]
[378666816,1754951441337,-446.46,0.00016438,2]
[378666817,1754951441346,-400.0,0.00016438,2]
[378666818,1754951441355,-457.68811414,0.00016438,2]
[378666819,1754951441367,-28.66188586,0.00016438,2]
[378666820,1754951441376,-283.3227926,0.00016438,2]
[378666821,1754951441387,-116.6772074,0.00016438,2]
[378666822,1754951441396,-400.0,0.00016438,2]
[378666823,1754951441404,-444.8489563,0.00016438,2]
[378666824,1754951441414,-400.0,0.00016438,2]
[378666825,1754951441423,-764.83,0.00016438,2]
[378666826,1754951441432,-647.07,0.00016438,2]
[378666827,1754951441441,-400.0,0.00016438,2]
[378666828,1754951441450,-400.0,0.00016438,2]
[378666829,1754951441459,-400.0,0.00016438,2]
[378666830,1754951441468,-400.0,0.00016438,2]
[378666831,1754951441478,-277.69,0.00016438,2]
[378666832,1754951441487,-438.43,0.00016438,2]
[378666833,1754951441497,-400.0,0.00016438,2]
[378666834,1754951441506,-1005.81,0.00016438,2]
[378666835,1754951441516,-400.0,0.00016438,2]
[378666836,1754951441524,-413.69,0.00016438,2]
[378666837,1754951441534,-412.59,0.00016438,2]
[378666838,1754951441543,-400.0,0.00016438,2]
[378666839,1754951441552,-1522.93,0.00016438,2]
[378666840,1754951441561,-506.55,0.00016438,2]
[378666841,1754951441570,-459.98,0.00016438,2]
[378666842,1754951441579,-463.98,0.00016438,2]
[378666843,1754951441589,-694.79,0.00016438,2]
[378666844,1754951441598,-400.0,0.00016438,2]
[378666845,1754951441607,-400.0,0.00016438,2]
[378666846,1754951441616,-401.28,0.00016438,2]
[378666847,1754951441625,-400.0,0.00016438,2]
[378666848,1754951441634,-400.0,0.00016438,2]
[378666849,1754951441644,-400.0,0.00016438,2]
[378666850,1754951441655,-576.19,0.00016438,2]
[378666851,1754951441664,-400.0,0.00016438,2]
[378666852,1754951441673,-400.0,0.00016438,2]
[378666853,1754951441683,-464.8,0.00016438,2]
[378666854,1754951441692,-404.0971144,0.00016438,2]
[378666855,1754951441702,-160.06657506,0.00016438,2]
[378666856,1754951441711,-400.0,0.00016438,2]
[378666857,1754951441720,-489.08353675,0.00016438,2]
[378666858,1754951441731,-4595.69,0.00016438,2]
[378666859,1754951441740,-400.0,0.00016438,2]
[378666860,1754951441749,-400.0,0.00016438,2]
[378666861,1754951441758,-541.24,0.00016438,2]
[378666862,1754951441768,-400.0,0.00016438,2]
[378666863,1754951441777,-400.0,0.00016438,2]
[378666864,1754951441787,-913.93,0.00016438,2]
[378666865,1754951441796,-400.0,0.00016438,2]
[378666866,1754951441805,-400.0,0.00016438,2]
[378666867,1754951441814,-400.0,0.00016438,2]
[378666868,1754951441823,-524.02,0.00016438,2]
[378666869,1754951441834,-400.0,0.00016438,2]
[378666870,1754951441843,-588.49,0.00016438,2]
[378666871,1754951441853,-578.83,0.00016438,2]
[378666872,1754951441862,-400.0,0.00016438,2]
[378666873,1754951441871,-718.91,0.00016438,2]
[378666874,1754951441881,-400.0,0.00016438,2]
[378666875,1754951441890,-1247.14,0.00016438,2]
[378666876,1754951441900,-458.07,0.00016438,2]
[378666877,1754951441910,-495.55,0.00016438,2]
[378666878,1754951441919,-400.0,0.00016438,2]
[378666879,1754951441928,-855.41,0.00016438,2]
[378666880,1754951441938,-610.42,0.00016438,2]
[378666881,1754951441949,-814.93,0.00016438,2]
[378666882,1754951441958,-541.21,0.00016438,2]
[378666883,1754951441967,-1370.25,0.00016438,2]
[378666884,1754951441977,-515.15,0.00016438,2]
[378666885,1754951441987,-560.14,0.00016438,2]
[378666886,1754951441996,-400.0,0.00016438,2]
[378666887,1754951442005,-400.0,0.00016438,2]
[378666888,1754951442014,-400.0,0.00016438,2]
[378666889,1754951442025,-559.22,0.00016438,2]
[378666890,1754951442034,-400.0,0.00016438,2]
[378666891,1754951442044,-400.0,0.00016438,2]
[378666892,1754951442053,-559.19,0.00016438,2]
[378666893,1754951442063,-1362.45,0.00016438,2]
[378666894,1754951442072,-417.73,0.00016438,2]
[378666895,1754951442081,-546.93,0.00016438,2]
[378666896,1754951442090,-460.65,0.00016438,2]
[378666897,1754951442099,-1407.23,0.00016438,2]
[378666898,1754951442109,-400.0,0.00016438,2]
[378666899,1754951442118,-409.15,0.00016438,2]
[378666900,1754951442127,-635.76,0.00016438,2]
[378666901,1754951442136,-635.76,0.00016438,2]
[378666902,1754951442145,-405.83,0.00016438,2]
[378666903,1754951442156,-1010.98,0.00016438,2]
[378666904,1754951442165,-400.0,0.00016438,2]
[378666905,1754951442174,-537.37,0.00016438,2]
[378666906,1754951442183,-456.23,0.00016438,2]
[378666907,1754951442193,-511.17,0.00016438,2]
[378666908,1754951442202,-582.61,0.00016438,2]
[378666909,1754951442211,-400.0,0.00016438,2]
[378666910,1754951442220,-469.95,0.00016438,2]
[378666911,1754951442229,-400.0,0.00016438,2]
[378666912,1754951442238,-400.0,0.00016438,2]
[378666913,1754951442248,-610.59,0.00016438,2]
[378666914,1754951442257,-432.38,0.00016438,2]
[378666915,1754951442267,-400.0,0.00016438,2]
[378666916,1754951442276,-400.0,0.00016438,2]
[378666917,1754951442286,-400.0,0.00016438,2]
[378666918,1754951442295,-1118.17,0.00016438,2]
[378666919,1754951442304,-2669.23,0.00016438,2]
[378666920,1754951442313,-2669.23,0.00016438,2]
[378666921,1754951442323,-400.0,0.00016438,2]
[378666922,1754951442331,-796.63,0.00016438,2]
[378666923,1754951442341,-400.0,0.00016438,2]
[378666924,1754951442350,-400.0,0.00016438,2]
[378666925,1754951442359,-400.0,0.00016438,2]
[378666926,1754951442368,-922.6,0.00016438,2]
[378666927,1754951442377,-520.35,0.00016438,2]
[378666928,1754951442387,-611.63,0.00016438,2]
[378666929,1754951442396,-400.0,0.00016438,2]
[378666930,1754951442405,-1880.66,0.00016438,2]
[378666931,1754951442415,-400.0,0.00016438,2]
[378666932,1754951442424,-400.0,0.00016438,2]
[378666933,1754951442433,-400.0,0.00016438,2]
[378666934,1754951442442,-683.59,0.00016438,2]
[378666935,1754951442452,-400.0,0.00016438,2]
[378666936,1754951442461,-738.52,0.00016438,2]
[378666937,1754951442470,-609.44,0.00016438,2]
[378666938,1754951442480,-400.0,0.00016438,2]
[378666939,1754951442490,-1165.58,0.00016438,2]
[378666940,1754951442499,-400.0,0.00016438,2]
[378666941,1754951442508,-400.0,0.00016438,2]
[378666942,1754951442517,-400.0,0.00016438,2]
[378666943,1754951442526,-653.789776,0.00016438,2]
[378666944,1754951442535,-935.61,0.00016438,2]
[378666945,1754951442545,-1130.31,0.00016438,2]
[378666946,1754951442554,-416.4,0.00016438,2]
[378666947,1754951442563,-400.0,0.00016438,2]
[378666948,1754951442572,-1547.84,0.00016438,2]
[378666949,1754951442581,-400.0,0.00016438,2]
[378666950,1754951442590,-468.07,0.00016438,2]
[378666951,1754951442600,-1149.74,0.00016438,2]
[378666952,1754951442609,-400.0,0.00016438,2]
[378666953,1754951442618,-465.78,0.00016438,2]
[378666954,1754951442627,-158.851138,0.00016438,2]
[378666955,1754951442637,-664.18,0.00016438,2]
[378666956,1754951442648,-756.94,0.00016438,2]
[378666957,1754951442657,-428.67,0.00016438,2]
[378666958,1754951442667,-400.0,0.00016438,2]
[378666959,1754951442676,-308.59858762,0.00016438,2]
[378666960,1754951442686,-590.02,0.00016438,2]
[378666961,1754951442695,-379.24349,0.00016438,2]
[378666962,1754951442704,-400.0,0.00016438,2]
[378666963,1754951442714,-695.22,0.00016438,2]
[378666964,1754951442723,-400.0,0.00016438,2]
[378666965,1754951442732,-624.31,0.00016438,2]
[378666966,1754951442742,-402.42,0.00016438,2]
[378666967,1754951442751,-620.119934,0.00016438,2]
[378666968,1754951442760,-1114.61,0.00016438,2]
[378666969,1754951442770,-661.46,0.00016438,2]
[378666970,1754951442779,-400.0,0.00016438,2]
[378666971,1754951442789,-400.0,0.00016438,2]
[378666972,1754951442798,-400.0,0.00016438,2]
[378666973,1754951442808,-400.0,0.00016438,2]
[378666974,1754951442818,-457.67,0.00016438,2]
[378666975,1754951442827,-1138.65,0.00016438,2]
[378666976,1754951442836,-400.0,0.00016438,2]
[378666977,1754951442846,-1324.57,0.00016438,2]
[378666978,1754951442855,-514.19,0.00016438,2]
[378666979,1754951442864,-1088.53,0.00016438,2]
[378666980,1754951442874,-400.0,0.00016438,2]
[378666981,1754951442883,-400.0,0.00016438,2]
[378666982,1754951442892,-497.9,0.00016438,2]
[378666983,1754951442902,-400.0,0.00016438,2]
[378666984,1754951442911,-400.0,0.00016438,2]
[378666985,1754951442921,-535.29,0.00016438,2]
[378666986,1754951442931,-664.65,0.00016438,2]
[378666987,1754951442942,-400.0,0.00016438,2]
[378666988,1754951442961,-555.39,0.00016438,2]
[378666989,1754951442980,-487.31,0.00016438,2]
[378666990,1754951442990,-558.53,0.00016438,2]
[378666991,1754951443000,-1038.4,0.00016438,2]
[378666992,1754951443009,-400.0,0.00016438,2]
[378666993,1754951443019,-719.54,0.00016438,2]
[378666994,1754951443028,-400.0,0.00016438,2]
[378666995,1754951443038,-605.37,0.00016438,2]
[378666996,1754951443047,-618.57,0.00016438,2]
[378666997,1754951443057,-2914.16,0.00016438,2]
[378666998,1754951443066,-595.98,0.00016438,2]
[378666999,1754951443075,-2174.8,0.00016438,2]
[378667000,1754951443085,-713.2,0.00016438,2]
[378667001,1754951443095,-400.0,0.00016438,2]
[378667002,1754951443105,-260.10798416,0.00016438,2]
[378667004,1754951443126,-139.89201584,0.00016438,2]
[378667005,1754951443135,-400.0,0.00016438,2]
[378667006,1754951443145,-400.0,0.00016438,2]
[378667007,1754951443156,-400.0,0.00016438,2]
[378667008,1754951443166,-569.9,0.00016438,2]
[378667009,1754951443175,-411.95,0.00016438,2]
[378667010,1754951443185,-574.72,0.00016438,2]
[378667011,1754951443195,-490.928281,0.00016438,2]
[378667013,1754951443553,-159.06917538,0.00016438,2]
[378667014,1754951443566,-240.93082462,0.00016438,2]
[378667015,1754951443575,-400.0,0.00016438,2]
[378667016,1754951443584,-99.49189424,0.00016438,2]
[378667017,1754951443627,-516.80810576,0.00016438,2]
[378667018,1754951443636,-400.0,0.00016438,2]
[378667019,1754951443648,-95.6008054,0.00016438,2]
[378667020,1754951443660,-304.3991946,0.00016438,2]
[378667021,1754951443671,-400.1,0.00016438,2]
[378667022,1754951443680,-489.34,0.00016438,2]
[378667023,1754951443690,-400.0,0.00016438,2]
[378667024,1754951443700,-754.42,0.00016438,2]
[378667025,1754951443710,-400.0,0.00016438,2]
[378667026,1754951443720,-268.56961889,0.00016438,2]
[378667108,1754951444591,-523.39492822,0.000164,2]
[378667109,1754951444601,-131.43038111,0.00016438,2]
[378667110,1754951444610,-400.0,0.00016438,2]
[378667111,1754951444619,-1835.86,0.00016438,2]
[378667112,1754951444628,-1000.0,0.00016438,2]
[378667113,1754951444637,-400.0,0.00016438,2]
[378667114,1754951444647,-400.0,0.00016438,2]
[378667115,1754951444656,-501.66,0.00016438,2]
[378667116,1754951444665,-917.68919624,0.00016438,2]
[378667117,1754951444677,-19.02080376,0.00016438,2]
[378667118,1754951444686,-349.33060293,0.00016438,2]
[378667119,1754951444697,-199.87939707,0.00016438,2]
[378667120,1754951444707,-809.14,0.00016438,2]
[378667121,1754951444716,-168.48125151,0.00016438,2]
[378667124,1754951444751,-748.20874849,0.00016438,2]
[378667126,1754951444760,-612.18,0.00016438,2]
[378667127,1754951444770,-623.21,0.00016438,2]
[378667129,1754951444779,-578.62,0.00016438,2]
[378667132,1754951444789,-400.0,0.00016438,2]
[378667134,1754951444798,-564.44,0.00016438,2]
[378667135,1754951444807,-631.48,0.00016438,2]
[378667138,1754951444817,-400.0,0.00016438,2]
[378667140,1754951444826,-893.13,0.00016438,2]
[378667142,1754951444836,-400.0,0.00016438,2]
[378667144,1754951444845,-400.0,0.00016438,2]
[378667146,1754951444854,-400.0,0.00016438,2]
[378667148,1754951444864,-400.0,0.00016438,2]
[378667150,1754951444873,-689.06,0.00016438,2]
[378667152,1754951444883,-469.28,0.00016438,2]
[378667154,1754951444892,-2023.41,0.00016438,2]
[378667156,1754951444902,-1574.61,0.00016438,2]
[378667158,1754951444911,-505.39,0.00016438,2]
[378667159,1754951444920,-477.93,0.00016438,2]
[378667161,1754951444929,-686.88,0.00016438,2]
[378667163,1754951444939,-1389.51,0.00016438,2]
[378667165,1754951444953,-400.0,0.00016438,2]
[378667167,1754951444963,-881.22,0.00016438,2]
[378667169,1754951444973,-400.0,0.00016438,2]
[378667171,1754951444982,-419.18,0.00016438,2]
[378667172,1754951444993,-400.0,0.00016438,2]
[378667173,1754951445002,-407.57,0.00016438,2]
[378667174,1754951445011,-790.05,0.00016438,2]
[378667175,1754951445022,-400.0,0.00016438,2]
[378667176,1754951445031,-400.0,0.00016438,2]
[378667177,1754951445041,-656.85,0.00016438,2]
[378667178,1754951445050,-399.999999,0.00016438,2]
[378667179,1754951445060,-400.0,0.00016438,2]
[378667180,1754951445069,-590.95,0.00016438,2]
[378667181,1754951445079,-546.08,0.00016438,2]
[378667182,1754951445089,-1369.98,0.00016438,2]
[378667183,1754951445099,-400.0,0.00016438,2]
[378667184,1754951445112,-1442.57,0.00016438,2]
[378667185,1754951445127,-830.78,0.00016438,2]
[378667186,1754951445137,-400.0,0.00016438,2]
[378667187,1754951445147,-400.0,0.00016438,2]
[378667188,1754951445156,-400.0,0.00016438,2]
[378667189,1754951445166,-400.0,0.00016438,2]
[378667190,1754951445175,-345.29641315,0.00016438,2]
[378667191,1754951445185,-783.0,0.00016438,2]
[378667192,1754951445194,-783.0,0.00016438,2]
[378667193,1754951445204,-783.0,0.00016438,2]
[378667194,1754951445213,-783.0,0.00016438,2]
[378667195,1754951445222,-783.0,0.00016438,2]
[378667196,1754951445231,-260.0,0.00016438,2]
[378667197,1754951445240,-260.0,0.00016438,2]
[378667198,1754951445249,-260.0,0.00016438,2]
[378667199,1754951445258,-260.0,0.00016438,2]
[378667200,1754951445268,-260.0,0.00016438,2]
[378667201,1754951445277,-260.0,0.00016438,2]
[378667202,1754951445286,-260.0,0.00016438,2]
[378667203,1754951445296,-260.0,0.00016438,2]
[378667204,1754951445305,-260.0,0.00016438,2]
[378667205,1754951445314,-260.0,0.00016438,2]
[378667206,1754951445324,-260.0,0.00016438,2]
[378667207,1754951445339,-260.0,0.00016438,2]
[378667208,1754951445348,-260.0,0.00016438,2]
[378667209,1754951445359,-783.0,0.00016438,2]
[378667210,1754951445368,-783.0,0.00016438,2]
[378667211,1754951445378,-783.0,0.00016438,2]
[378667212,1754951445387,-783.0,0.00016438,2]
[378667213,1754951445397,-783.0,0.00016438,2]
[378667214,1754951445409,-783.0,0.00016438,2]
[378667215,1754951445419,-783.0,0.00016438,2]
[378667216,1754951445428,-783.0,0.00016438,2]
[378667217,1754951445438,-783.0,0.00016438,2]
[378667218,1754951445447,-783.0,0.00016438,2]
[378667219,1754951445456,-783.0,0.00016438,2]
[378667220,1754951445466,-783.0,0.00016438,2]
[378667221,1754951445475,-783.0,0.00016438,2]
[378667222,1754951445485,-783.0,0.00016438,2]
[378667223,1754951445494,-260.0,0.00016438,2]
[378667224,1754951445503,-260.0,0.00016438,2]
[378667225,1754951445512,-260.0,0.00016438,2]
[378667226,1754951445522,-260.0,0.00016438,2]
[378667227,1754951445530,-260.0,0.00016438,2]
[378667228,1754951445540,-260.0,0.00016438,2]
[378667229,1754951445549,-260.0,0.00016438,2]
[378667230,1754951445558,-260.0,0.00016438,2]
[378667231,1754951445567,-260.0,0.00016438,2]
[378667232,1754951445577,-260.0,0.00016438,2]
[378667233,1754951445586,-260.0,0.00016438,2]
[378667234,1754951445595,-260.0,0.00016438,2]
[378667235,1754951445604,-260.0,0.00016438,2]
[378667236,1754951445613,-260.0,0.00016438,2]
[378667237,1754951445623,-150.0,0.0001644,2]
[378667238,1754951445632,-207.0,0.0001644,2]
[378667239,1754951445641,-150.0,0.00016445,2]
[378667240,1754951445651,-150.0,0.00016452,2]
[378667241,1754951445661,-150.0,0.00016454,2]
[378667242,1754951445670,-150.0,0.00016458,2]
[378667243,1754951445679,-150.0,0.00016458,2]
[378667244,1754951445689,-150.0,0.00016461,2]
[378667245,1754951445698,-150.0,0.00016468,2]
[378667246,1754951445707,-150.0,0.00016471,2]
[378667247,1754951445716,-150.0,0.00016472,2]
[378667248,1754951445726,-150.0,0.00016472,2]
[378667249,1754951445735,-842.86497659,0.00016472,2]
[378667250,1754951445744,-457.87080987,0.00016473,2]
[378667251,1754951445753,-211.73953792,0.00016473,2]
[378667252,1754951445830,-160.0,0.00016473,2]
[378667253,1754951445842,-500.0,0.00016473,2]
[378667254,1754951445852,-500.0,0.00016473,2]
[378667255,1754951445861,-500.0,0.00016473,2]
[378667256,1754951445872,-413.08289685,0.00016473,2]
[378667257,1754951445881,-500.0,0.00016473,2]
[378667258,1754951445891,-500.0,0.00016473,2]
[378667259,1754951445904,-500.0,0.00016473,2]
[378667260,1754951445914,-500.0,0.00016473,2]
[378667261,1754951445924,-500.0,0.00016473,2]
[378667262,1754951445934,-500.0,0.00016473,2]
[378667263,1754951445943,-150.0,0.00016474,2]
[378667264,1754951445955,-150.0,0.00016484,2]
[378667265,1754951445964,-150.0,0.00016487,2]
[378667266,1754951445973,-400.0,0.00016489,2]
[378667267,1754951445983,-400.0,0.00016489,2]
[378667268,1754951445993,-400.0,0.00016489,2]
[378667269,1754951446002,-400.0,0.00016489,2]
[378667270,1754951446011,-400.0,0.00016489,2]
[378667271,1754951446022,-400.0,0.00016489,2]
[378667272,1754951446031,-314.58903635,0.00016489,2]
[378667273,1754951446039,-400.0,0.00016489,2]
[378667274,1754951446049,-400.0,0.00016489,2]
[378667275,1754951446058,-400.0,0.00016489,2]
[378667276,1754951446067,-400.0,0.00016489,2]
[378667277,1754951446076,-400.0,0.00016489,2]
[378667278,1754951446085,-400.0,0.00016489,2]
[378667279,1754951446095,-336.26010013,0.00016489,2]
[378667280,1754951446104,-400.0,0.00016489,2]
[378667281,1754951446113,-400.0,0.00016489,2]
[378667282,1754951446122,-400.0,0.00016489,2]
[378667284,1754951446132,-400.0,0.00016489,2]
[378667285,1754951446141,-400.0,0.00016489,2]
[378667286,1754951446150,-400.0,0.00016489,2]
[378667287,1754951446159,-400.0,0.00016489,2]
[378667288,1754951446168,-400.0,0.00016489,2]
[378667289,1754951446177,-400.0,0.00016489,2]
[378667290,1754951446187,-400.0,0.00016489,2]
[378667291,1754951446195,-400.0,0.00016489,2]
[378667292,1754951446204,-400.0,0.00016489,2]
[378667293,1754951446213,-400.0,0.00016489,2]
[378667295,1754951446222,-400.0,0.00016489,2]
[378667296,1754951446231,-400.0,0.00016489,2]
[378667297,1754951446240,-400.0,0.00016489,2]
[378667298,1754951446249,-400.0,0.00016489,2]
[378667299,1754951446259,-400.0,0.00016489,2]
[378667300,1754951446272,-249.33,0.00016489,2]
[378667301,1754951446291,-400.0,0.00016489,2]